bitfinex/quotes_SOLUSD_20250809
["timestamp","ask_amount","ask_price","bid_price","bid_amount"]
[1754723114359,3.24258189,179.82,179.81,43.0426606]
[1754723114658,3.24258189,179.82,179.81,43.7526606]
[1754723115050,8.80369856,179.82,179.81,43.7526606]
[1754723115464,5.56111667,179.82,179.81,43.7526606]
[1754723115638,8.80369856,179.82,179.81,43.7526606]
[1754723116243,10.8769358,179.82,179.81,39.59]
[1754723116465,8.80369856,179.82,179.81,43.75412186]
[1754723117154,5.56111667,179.82,179.81,43.75412186]
[1754723117460,10.87734885,179.82,179.81,43.75412186]
[1754723117655,5.56111667,179.82,179.81,43.75412186]
[1754723117841,5.56111667,179.82,179.81,53.75412186]
[1754723118046,3.24258189,179.82,179.81,53.75412186]
[1754723118252,22.70509016,179.84,179.82,10.0]
[1754723118449,3.24258189,179.83,179.82,10.71]
[1754723118677,5.316319,179.83,179.8,10.0]
[1754723118968,5.316319,179.83,179.79,0.06]
[1754723118969,19.46250827,179.84,179.81,53.75471706]
[1754723119163,2.0736495,179.83,179.82,4.16471706]
[1754723119411,2.0736495,179.83,179.82,43.75471706]
[1754723119541,19.46250827,179.84,179.82,43.75471706]
[1754723119743,19.46250827,179.84,179.82,39.59]
[1754723120247,3.24258189,179.83,179.82,39.59]
[1754723120546,3.24258189,179.83,179.82,43.75469644]
[1754723121561,8.80338931,179.83,179.82,43.75469644]
[1754723122069,10.87632454,179.83,179.82,39.59]
[1754723122671,10.87632454,179.83,179.82,43.75457931]
[1754723122871,10.87632454,179.83,179.82,38.88]
[1754723124564,10.87632454,179.83,179.82,39.59]
[1754723126189,10.87632454,179.83,179.82,39.57]
[1754723126588,7.63374265,179.83,179.82,39.57]
[1754723126795,10.87632454,179.83,179.82,39.57]
[1754723127101,7.63374265,179.83,179.82,39.57]
[1754723127273,10.87632454,179.83,179.82,39.57]
[1754723128693,10.87687723,179.83,179.82,39.57]
[1754723130085,7.63429534,179.83,179.82,39.57]
[1754723130274,10.87687723,179.83,179.82,39.57]
[1754723131398,11.56687723,179.83,179.8,10.0]
[1754723131692,2.07348792,179.82,179.81,38.84]
[1754723131873,2.07348792,179.82,179.81,48.84]
[1754723132377,22.26691842,179.83,179.81,53.00590875]
[1754723132577,5.56080742,179.83,179.82,4.16590875]
[1754723132777,7.63389129,179.83,179.82,4.16590875]
[1754723133084,10.87647318,179.83,179.82,4.16590875]
[1754723133277,10.87647318,179.83,179.82,4.84590875]
[1754723133597,10.87647318,179.83,179.82,0.68]
[1754723133797,7.63389129,179.83,179.82,4.84613889]
[1754723134093,10.87647318,179.83,179.82,4.84613889]
[1754723134267,7.63389129,179.83,179.82,4.84613889]
[1754723134471,10.87647318,179.83,179.82,4.84613889]
[1754723135888,10.87647318,179.83,179.82,4.90613889]
[1754723136074,10.87647318,179.83,179.82,14.90613889]
[1754723136275,10.90647318,179.83,179.82,14.90613889]
[1754723137815,10.90647318,179.83,179.82,43.74613889]
[1754723137986,7.66389129,179.83,179.82,53.74613889]
[1754723138175,10.90647318,179.83,179.82,53.74613889]
[1754723139302,7.66389129,179.83,179.82,53.74613889]
[1754723139511,27.78395198,179.96,179.82,53.74613889]
[1754723139512,3.24258189,179.92,179.84,25.10621557]
[1754723139801,6.24802578,179.92,179.91,10.0]
[1754723139982,9.49060767,179.92,179.91,38.82]
[1754723140399,9.49060767,179.92,179.91,48.82]
[1754723140573,9.49060767,179.92,179.91,52.98284758]
[1754723141082,8.80060767,179.92,179.91,42.98284758]
[1754723141283,8.80060767,179.92,179.91,48.82]
[1754723141678,8.80060767,179.92,179.91,38.82]
[1754723141990,8.80060767,179.92,179.91,48.82]
[1754723144700,5.55802578,179.92,179.91,52.97307287]
[1754723145397,9.49060767,179.92,179.91,14.15307287]
[1754723145708,9.49060767,179.92,179.91,52.97307287]
[1754723146304,8.80060767,179.92,179.91,52.97307287]
[1754723146798,9.49060767,179.92,179.91,52.97307287]
[1754723147002,8.80060767,179.92,179.91,52.97307287]
[1754723148501,9.49060767,179.92,179.91,48.82]
[1754723149995,5.55802578,179.92,179.91,52.96353888]
[1754723150399,5.55771688,179.93,179.92,10.0]
[1754723150899,5.55748962,179.94,179.93,10.0]
[1754723151207,5.55748962,179.94,179.93,48.8]
[1754723151809,8.80007151,179.94,179.93,48.8]
[1754723152016,9.49007151,179.94,179.93,48.8]
[1754723153099,5.55748962,179.94,179.93,48.8]
[1754723153296,5.55716215,179.95,179.94,10.0]
[1754723153503,5.55716215,179.95,179.94,52.93627742]
[1754723154000,5.55687212,179.96,179.95,10.0]
[1754723154223,5.55687212,179.96,179.95,14.13627742]
[1754723154524,5.55687212,179.96,179.95,10.0]
[1754723155408,5.55651764,179.97,179.96,10.0]
[1754723155719,5.55651764,179.97,179.96,48.82]
[1754723156399,8.79909953,179.97,179.96,48.82]
[1754723156600,6.24651764,179.97,179.96,48.82]
[1754723156922,9.48909953,179.97,179.96,48.82]
[1754723157736,9.48909953,179.97,179.96,10.0]
[1754723157924,9.48909953,179.97,179.96,48.82]
[1754723158703,6.24651764,179.97,179.96,48.82]
[1754723159325,5.5861729,179.98,179.96,48.82]
[1754723159630,5.0562641,179.97,179.96,48.82]
[1754723160008,5.0862641,179.97,179.96,48.82]
[1754723160514,0.03,179.97,179.96,48.82]
[1754723160837,0.03,179.97,179.96,68.05112164]
[1754723162133,0.03,179.97,179.96,68.09112164]
[1754723162432,0.03,179.97,179.96,29.23112164]
[1754723162628,0.03,179.97,179.96,68.09112164]
[1754723163225,0.03,179.97,179.96,68.08691234]
[1754723165835,0.03,179.97,179.96,73.64370273]
[1754723166032,0.03,179.97,179.96,194.239969]
[1754723166216,0.03,179.97,179.96,78.98428997]
[1754723166534,0.03,179.97,179.96,168.239969]
[1754723166831,0.03,179.97,179.96,167.68428997]
[1754723167210,0.03,179.97,179.96,78.98428997]
[1754723167405,0.03,179.97,179.96,79.539969]
[1754723167924,0.03,179.97,179.96,168.239969]
[1754723168129,0.03,179.97,179.96,78.98428997]
[1754723168330,0.03,179.97,179.96,79.539969]
[1754723169717,0.03,179.97,179.96,81.764107]
[1754723170514,0.03,179.97,179.96,170.464107]
[1754723170709,0.03,179.97,179.96,169.90842797]
[1754723173933,0.03,179.98,179.96,169.90842797]
[1754723174117,0.03,180.0,179.99,35.50306691]
[1754723174323,0.03,180.0,179.99,187.84882992]
[1754723174522,0.03,180.0,179.99,187.2932435]
[1754723174931,0.03,180.0,179.99,182.2369794]
[1754723175435,0.03,180.0,179.99,187.79284361]
[1754723175941,0.03,180.0,179.99,182.73657951]
[1754723176241,0.03,180.0,179.99,187.79284361]
[1754723176411,0.03,180.0,179.99,192.84910771]
[1754723177243,0.03,180.0,179.99,195.07262671]
[1754723177815,0.03,180.0,179.99,341.47262671]
[1754723178317,0.03,180.0,179.99,336.41636261]
[1754723178833,0.03,180.0,179.99,297.51636261]
[1754723179047,0.03,180.0,179.99,334.17284361]
[1754723180721,0.03,180.0,179.99,334.15800745]
[1754723182324,0.03,180.0,179.99,295.27800745]
[1754723182637,0.03,180.0,179.99,336.36165045]
[1754723182851,0.03,180.0,179.99,341.41791455]
[1754723183851,0.03,180.01,180.0,119.58609426]
[1754723184024,0.03,180.01,180.0,128.74821897]
[1754723184964,0.03,180.01,180.0,133.80448307]
[1754723186137,0.03,180.02,180.01,25.39053871]
[1754723186346,0.03,180.02,180.01,74.06818811]
[1754723186551,0.03,180.02,180.01,235.17163546]
[1754723186732,0.03,180.02,180.01,234.6249796]
[1754723187128,0.03,180.02,180.01,236.8482516]
[1754723188058,0.03,180.02,180.01,242.40349853]
[1754723189755,0.03,180.06,180.05,118.88455148]
[1754723189960,0.03,180.06,180.05,166.99554502]
[1754723193543,0.03,180.06,180.05,161.93928092]
[1754723193860,0.03,180.06,180.05,166.99554502]
[1754723194377,0.03,180.06,180.05,128.05554502]
[1754723194541,0.03,180.06,180.05,166.97554502]
[1754723195651,0.69,180.08,180.05,166.97554502]
[1754723195652,0.69,180.08,180.07,134.56961147]
[1754723195849,0.69,180.08,180.07,192.64060501]
[1754723196558,0.69,180.08,180.07,232.62060501]
[1754723196951,0.69,180.08,180.07,193.72060501]
[1754723197262,0.69,180.08,180.07,232.62060501]
[1754723198152,0.03,180.1,180.07,232.62060501]
[1754723198153,0.72,180.1,180.09,51.39053871]
[1754723198341,0.72,180.1,180.09,187.37153225]
[1754723200250,0.72,180.1,180.09,154.0393735]
[1754723200455,0.72,180.1,180.09,94.1360071]
[1754723200769,0.72,180.1,180.09,29.2360071]
[1754723200970,0.72,180.1,180.09,68.1360071]
[1754723201133,5.7762641,180.1,180.09,68.1360071]
[1754723201950,0.72,180.1,180.09,68.1360071]
[1754723202455,0.72,180.1,180.09,29.2360071]
[1754723202654,0.72,180.1,180.09,68.1360071]
[1754723203063,0.03,180.1,180.09,78.74505036]
[1754723204159,0.03,180.1,180.09,79.0293735]
[1754723204342,0.03,180.1,180.09,105.0293735]
[1754723204745,0.72,180.1,180.09,99.1922712]
[1754723206161,0.03,180.1,180.09,99.1722712]
[1754723206547,0.03,180.1,180.09,193.7093735]
[1754723206751,0.03,180.1,180.09,194.4293735]
[1754723207247,0.03,180.1,180.09,193.7093735]
[1754723207450,0.03,180.1,180.09,168.4293735]
[1754723210453,0.03,180.1,180.09,167.7293735]
[1754723211973,0.03,180.1,180.09,123.27659434]
[1754723212146,0.72,180.1,180.09,162.15659434]
[1754723212562,0.72,180.1,180.09,29.2360071]
[1754723212761,0.72,180.1,180.09,94.1160071]
[1754723212966,0.72,180.1,180.09,68.1360071]
[1754723215678,0.03,180.1,180.09,68.1360071]
[1754723215854,0.03,180.1,180.09,74.19659434]
[1754723216058,0.03,180.1,180.09,74.21577376]
[1754723216379,0.03,180.1,180.09,168.46855292]
[1754723216581,0.03,180.1,180.09,162.19577376]
[1754723219860,0.03,180.1,180.09,168.46855292]
[1754723223792,0.03,180.1,180.09,40.86855292]
[1754723223969,0.74,180.1,180.09,68.15686166]
[1754723224565,0.74,180.1,180.09,94.15686166]
[1754723229775,0.74,180.1,180.09,94.16173245]
[1754723231591,0.74,180.1,180.09,68.16173245]
[1754723231900,11.34873494,180.1,180.09,68.16173245]
[1754723232299,5.7962641,180.1,180.09,68.16173245]
[1754723233477,5.7962641,180.1,180.09,29.26173245]
[1754723233684,5.7962641,180.1,180.09,68.14173245]
[1754723234094,0.74,180.1,180.09,68.14173245]
[1754723236016,5.7962641,180.1,180.09,68.14173245]
[1754723237007,5.7962641,180.1,180.09,156.84173245]
[1754723237219,0.74,180.1,180.09,156.84173245]
[1754723237391,5.7962641,180.1,180.09,156.84173245]
[1754723237590,0.74,180.1,180.09,156.84173245]
[1754723237794,5.7962641,180.1,180.09,156.84173245]
[1754723238111,0.74,180.1,180.09,156.84173245]
[1754723238310,5.7962641,180.1,180.09,156.84173245]
[1754723238488,0.74,180.1,180.09,156.84173245]
[1754723238689,5.7962641,180.1,180.09,156.84173245]
[1754723239123,5.7962641,180.1,180.09,117.96173245]
[1754723239287,11.34873494,180.1,180.09,117.96173245]
[1754723239497,11.34873494,180.1,180.09,156.82173245]
[1754723239715,6.29247084,180.1,180.09,156.82173245]
[1754723240015,11.34873494,180.1,180.09,156.82173245]
[1754723241499,11.34873494,180.1,180.09,156.82364839]
[1754723242793,11.34873494,180.1,180.09,141.71743282]
[1754723243134,16.40499904,180.1,180.09,4.15743282]
[1754723243411,11.34873494,180.1,180.09,43.01743282]
[1754723244190,11.34873494,180.1,180.07,40.04]
[1754723244191,44.47673586,180.1,180.07,40.04]
[1754723244411,5.0562641,180.08,180.07,40.04]
[1754723244608,7.8376583,180.08,180.07,12.05064121]
[1754723244790,7.8376583,180.08,180.07,23.17113033]
[1754723244998,13.39074581,180.08,180.07,23.17113033]
[1754723245724,13.3892505,180.08,180.07,23.17113033]
[1754723246213,11.31935161,180.08,180.07,23.17113033]
[1754723246424,13.38809618,180.08,180.07,23.17113033]
[1754723246787,13.38798937,180.08,180.07,23.17113033]
[1754723247189,11.31935161,180.08,180.07,23.17113033]
[1754723247388,6.26308751,180.08,180.07,23.17113033]
[1754723247622,11.31935161,180.08,180.07,23.17113033]
[1754723250320,0.28432314,180.07,180.06,38.96]
[1754723250526,5.34058724,180.07,180.06,10.42937384]
[1754723250821,5.83802746,180.06,180.05,0.06]
[1754723251018,11.60429156,180.06,180.05,0.06]
[1754723254820,11.60429156,180.06,180.05,10.75]
[1754723254821,5.0562641,180.06,180.05,10.75]
[1754723256202,5.55353167,180.07,180.06,25.10621557]
[1754723256203,5.0562641,180.07,180.06,25.10621557]
[1754723256408,0.03,180.1,180.08,10.0]
[1754723256409,5.0562641,180.09,180.08,10.0]
[1754723256610,5.0562641,180.09,180.08,49.61]
[1754723256813,0.03,180.1,180.09,10.0]
[1754723257023,5.0862641,180.1,180.09,10.0]
[1754723257209,5.0862641,180.1,180.09,10.69]
[1754723257524,5.0862641,180.1,180.09,10.0]
[1754723258032,5.0862641,180.1,180.09,10.69]
[1754723258852,0.03,180.1,180.09,10.69]
[1754723259063,5.0862641,180.1,180.09,10.69]
[1754723259362,5.0862641,180.1,180.09,25.79621557]
[1754723259554,0.03,180.1,180.09,25.79621557]
[1754723261136,0.03,180.1,180.09,36.40525883]
[1754723265639,0.03,180.1,180.09,36.96053674]
[1754723265968,0.03,180.1,180.09,37.24485988]
[1754723266366,0.03,180.1,180.09,125.94485988]
[1754723266543,0.03,180.1,180.09,125.38958197]
[1754723269978,0.03,180.1,180.09,142.09958197]
[1754723270169,0.03,180.1,180.09,125.38958197]
[1754723271864,0.03,180.1,180.09,120.04899473]
[1754723272166,0.03,180.1,180.09,190.1474204]
[1754723272662,0.03,180.1,180.09,190.28958197]
[1754723273362,0.03,180.1,180.09,164.28958197]
[1754723276765,0.03,180.1,180.09,125.38958197]
[1754723276962,0.03,180.1,180.09,164.32958197]
[1754723282360,0.03,180.1,180.09,163.59958197]
[1754723282686,0.03,180.1,180.09,189.59958197]
[1754723283064,0.03,180.1,180.09,178.70621557]
[1754723283255,0.7,180.1,180.09,178.70621557]
[1754723283969,0.03,180.1,180.09,190.01525883]
[1754723284776,0.03,180.1,180.09,151.11525883]
[1754723284981,0.03,180.1,180.09,190.01525883]
[1754723285343,0.03,180.1,180.09,189.31525883]
[1754723285982,0.03,180.1,180.09,150.41525883]
[1754723286151,0.03,180.1,180.09,190.29958197]
[1754723286347,0.03,180.1,180.09,185.24331787]
[1754723286586,0.03,180.1,180.09,190.29958197]
[1754723287380,0.03,180.12,180.11,20.65837813]
[1754723287573,0.03,180.12,180.11,64.59464223]
[1754723288551,0.03,180.12,180.11,74.59464223]
[1754723290668,0.03,180.12,180.11,75.29464223]
[1754723292482,0.03,180.12,180.11,164.80418162]
[1754723292672,0.03,180.12,180.11,164.24896537]
[1754723299172,0.03,180.14,180.13,130.03053871]
[1754723299379,0.03,180.14,180.13,173.92680281]
[1754723299684,0.03,180.14,180.13,183.92680281]
[1754723300366,0.03,180.14,180.13,184.62680281]
[1754723300774,0.03,180.14,180.13,190.17834891]
[1754723301675,0.03,180.14,180.13,189.47834891]
[1754723302189,0.03,180.14,180.13,190.17834891]
[1754723303395,0.03,180.14,180.13,189.47834891]
[1754723303972,0.03,180.14,180.13,192.25023323]
[1754723304180,0.7,180.14,180.13,189.19402577]
[1754723304786,0.03,180.14,180.13,189.19402577]
[1754723305281,0.7,180.14,180.13,184.13776167]
[1754723305471,0.7,180.14,180.13,189.19402577]
[1754723305785,0.7,180.14,180.13,150.35402577]
[1754723305985,0.7,180.14,180.13,118.80247967]
[1754723306294,0.7,180.14,180.13,157.60247967]
[1754723307289,0.7,180.14,180.13,152.54621557]
[1754723308793,0.7,180.14,180.13,156.6181984]
[1754723309666,0.03,180.14,180.13,161.6744625]
[1754723310593,0.03,180.14,180.13,156.6181984]
[1754723310892,0.7,180.14,180.13,161.6744625]
[1754723311296,0.03,180.14,180.13,161.6744625]
[1754723311600,0.03,180.14,180.13,167.2260086]
[1754723312297,0.03,180.14,180.13,167.9260086]
[1754723313383,0.03,180.14,180.13,167.2260086]
[1754723316696,0.03,180.14,180.13,167.21369516]
[1754723317200,0.03,180.14,180.13,163.14171233]
[1754723317406,0.03,180.14,180.13,167.2132971]
[1754723317582,0.03,180.14,180.13,165.39747224]
[1754723320300,0.03,180.14,180.13,165.39710597]
[1754723323103,0.03,180.14,180.13,162.16898017]
[1754723323296,0.03,180.14,180.13,165.39710597]
[1754723323503,0.03,180.14,180.13,166.04710597]
[1754723324393,0.03,180.14,180.13,165.39710597]
[1754723324798,0.03,180.14,180.13,166.04710597]
[1754723325809,0.03,180.14,180.13,168.26951397]
[1754723335703,0.03,180.14,180.13,194.26951397]
[1754723337486,0.03,180.14,180.13,194.24951397]
[1754723338707,0.03,180.14,180.13,194.53383711]
[1754723342727,0.03,180.14,180.13,193.88383711]
[1754723343321,0.03,180.14,180.13,194.53383711]
[1754723344120,0.03,180.14,180.13,155.75383711]
[1754723344326,0.03,180.14,180.13,194.53383711]
[1754723344529,0.03,180.14,180.13,155.75383711]
[1754723344728,0.03,180.14,180.13,194.53383711]
[1754723346114,0.03,180.14,180.13,194.61881215]
[1754723349225,0.03,180.18,180.16,103.71621557]
[1754723349527,0.03,180.18,180.17,71.27053491]
[1754723349704,0.03,180.18,180.17,71.55485805]
[1754723349908,0.03,180.18,180.17,76.0480154]
[1754723351098,0.03,180.18,180.17,75.49298405]
[1754723351304,0.03,180.18,180.17,81.04329764]
[1754723352152,0.03,180.18,180.17,81.59832899]
[1754723352336,0.03,180.18,180.17,81.04329764]
[1754723352508,0.03,180.18,180.17,81.59832899]
[1754723353213,0.03,180.18,180.17,89.78754982]
[1754723353801,0.03,180.2,180.17,89.78754982]
[1754723353802,0.03,180.2,180.19,51.10621557]
[1754723354001,0.03,180.2,180.19,97.82550466]
[1754723354206,7.497619,180.26,180.2,15.39053871]
[1754723354404,8.197619,180.26,180.25,28.33434137]
[1754723354606,8.197619,180.26,180.25,68.04240911]
[1754723355004,8.197619,180.26,180.25,73.59025931]
[1754723356104,7.497619,180.26,180.25,73.59025931]
[1754723356314,7.497619,180.26,180.25,78.36749327]
[1754723356511,7.497619,180.26,180.25,166.97749327]
[1754723356717,7.497619,180.26,180.25,166.42270825]
[1754723357726,0.7,180.33,180.32,25.10621557]
[1754723357938,0.7,180.33,180.32,71.25053491]
[1754723358605,0.7,180.33,180.32,71.24375151]
[1754723360414,0.1,180.37,180.32,73.05548723]
[1754723360634,0.7,180.34,180.33,4.15619354]
[1754723360844,0.1,180.37,180.36,10.0]
[1754723361137,0.1,180.37,180.36,48.76]
[1754723361508,6.34415922,180.37,180.36,48.76]
[1754723362317,0.8,180.37,180.36,48.76]
[1754723363746,0.1,180.37,180.36,53.79307812]
[1754723363921,0.1,180.37,180.36,54.50307812]
[1754723364115,0.1,180.37,180.36,164.04808345]
[1754723364321,0.1,180.37,180.36,122.86108956]
[1754723364629,0.1,180.37,180.36,161.62108956]
[1754723364949,0.1,180.37,180.36,161.60108956]
[1754723366717,0.1,180.37,180.36,168.13987932]
[1754723367552,0.1,180.37,180.36,163.1068012]
[1754723367748,0.1,180.37,180.36,168.13987932]
[1754723368740,0.1,180.37,180.36,173.68225532]
[1754723369253,0.1,180.37,180.36,168.6491772]
[1754723369457,0.1,180.37,180.36,173.68225532]
[1754723369949,0.1,180.37,180.36,134.94225532]
[1754723370253,0.1,180.37,180.36,173.68225532]
[1754723370628,0.1,180.37,180.36,199.68225532]
[1754723371274,0.1,180.37,180.36,160.94225532]
[1754723371583,0.1,180.37,180.36,199.68225532]
[1754723372384,0.1,180.37,180.36,173.65668689]
[1754723374362,0.03,180.43,180.42,25.10621557]
[1754723374585,0.03,180.43,180.42,161.45552113]
[1754723374951,0.03,180.43,180.42,177.57206289]
[1754723375142,0.69,180.43,180.42,128.27636201]
[1754723375346,0.69,180.43,180.42,161.45552113]
[1754723376181,0.69,180.43,180.42,156.42244301]
[1754723376348,0.69,180.43,180.42,161.45552113]
[1754723376548,0.03,180.43,180.42,161.45552113]
[1754723377164,0.03,180.43,180.42,162.11552113]
[1754723377346,0.03,180.43,180.42,167.65814389]
[1754723377680,0.03,180.43,180.42,173.19896189]
[1754723377859,0.03,180.43,180.42,167.65633913]
[1754723378183,0.03,180.43,180.42,166.99633913]
[1754723378370,0.03,180.43,180.42,173.19896189]
[1754723378750,0.03,180.43,180.42,110.97328503]
[1754723378956,0.03,180.43,180.42,200.0375473]
[1754723379156,0.03,180.43,180.42,154.56066227]
[1754723379355,0.69,180.43,180.42,193.28066227]
[1754723379580,0.03,180.43,180.42,193.28066227]
[1754723380886,0.03,180.43,180.42,199.48328503]
[1754723381852,0.03,180.43,180.42,198.82328503]
[1754723382053,0.03,180.43,180.42,199.48328503]
[1754723382658,0.03,180.43,180.42,198.82328503]
[1754723382982,0.03,180.43,180.42,160.10328503]
[1754723383361,0.03,180.43,180.42,198.82328503]
[1754723383880,0.69,180.43,180.42,29.19244301]
[1754723384064,0.69,180.43,180.42,67.91244301]
[1754723390271,0.69,180.43,180.42,52.80622744]
[1754723392273,6.23231557,180.43,180.42,52.80622744]
[1754723392693,0.69,180.43,180.42,52.80622744]
[1754723393178,0.69,180.43,180.42,14.08622744]
[1754723393378,0.69,180.43,180.42,52.80622744]
[1754723396086,0.69,180.43,180.42,48.72]
[1754723396384,0.69,180.43,180.42,52.81920102]
[1754723398669,6.23231557,180.43,180.42,14.09920102]
[1754723398867,6.23231557,180.43,180.42,52.81920102]
[1754723399972,0.69,180.43,180.42,52.81920102]
[1754723400177,6.23231557,180.43,180.42,14.09920102]
[1754723400366,6.23231557,180.43,180.42,52.81920102]
[1754723400782,0.69,180.43,180.42,52.81920102]
[1754723401165,0.69,180.43,180.42,14.09920102]
[1754723401383,0.69,180.43,180.42,52.81920102]
[1754723404274,5.72307812,180.43,180.42,52.81920102]
[1754723404680,11.26539369,180.43,180.42,52.81920102]
[1754723405599,0.69,180.43,180.42,52.81920102]
[1754723406976,0.69,180.43,180.42,52.84850408]
[1754723407990,0.03,180.43,180.42,73.64779777]
[1754723408593,0.03,180.43,180.42,162.15779777]
[1754723408796,0.03,180.43,180.42,157.12471965]
[1754723409087,0.03,180.43,180.42,162.15779777]
[1754723409290,0.74,180.43,180.42,141.35850408]
[1754723409491,0.74,180.43,180.42,141.33850408]
[1754723410773,6.28231557,180.43,180.42,141.33850408]
[1754723411106,11.31539369,180.43,180.42,131.33850408]
[1754723411897,13.38889253,180.43,180.42,38.7]
[1754723412492,13.38813829,180.43,180.42,38.7]
[1754723412691,11.31539369,180.43,180.42,38.7]
[1754723413006,13.38813829,180.43,180.42,10.95112572]
[1754723413305,27.24392723,180.43,180.41,38.72]
[1754723413499,5.74307812,180.42,180.41,38.72]
[1754723413709,5.03307812,180.42,180.41,38.72]
[1754723413880,5.74307812,180.42,180.41,38.72]
[1754723415111,11.28570088,180.42,180.41,38.72]
[1754723416095,10.57570088,180.42,180.41,48.72]
[1754723416496,11.28570088,180.42,180.41,48.72]
[1754723418902,11.28570088,180.42,180.41,38.72]
[1754723419290,11.28570088,180.42,180.41,48.72]
[1754723419491,11.28570088,180.42,180.41,38.72]
[1754723420008,6.25262276,180.42,180.41,38.78]
[1754723420213,11.28570088,180.42,180.41,38.78]
[1754723420784,11.28570088,180.42,180.41,10.77502944]
[1754723420987,11.28570088,180.42,180.41,0.06]
[1754723421587,5.03307812,180.41,180.39,38.78]
[1754723421787,10.77615624,180.4,180.39,38.78]
[1754723422315,5.74307812,180.4,180.39,38.78]
[1754723422617,32.25323725,180.4,180.39,38.78]
[1754723422815,37.28631537,180.4,180.39,38.78]
[1754723428220,42.31939349,180.4,180.39,38.78]
[1754723430207,42.31939349,180.4,180.37,0.06]
[1754723430399,5.03307812,180.38,180.37,0.06]
[1754723430826,5.74307812,180.38,180.37,0.06]
[1754723431632,11.28692998,180.38,180.37,0.06]
[1754723438109,10.57692998,180.38,180.37,0.06]
[1754723438908,11.25692998,180.38,180.37,0.06]
[1754723452838,11.25954715,180.38,180.37,0.06]
[1754723453227,5.03569529,180.38,180.37,0.06]
[1754723453629,3.22284497,180.38,180.37,0.06]
[1754723454346,8.76669683,180.38,180.37,0.06]
[1754723461448,10.84078391,180.38,180.37,0.06]
[1754723461654,26.0,180.35,180.33,0.06]
[1754723461856,3.22284497,180.34,180.33,38.78]
[1754723462239,3.90284497,180.34,180.33,38.78]
[1754723462463,9.44792648,180.34,180.33,38.78]
[1754723463053,8.76792648,180.34,180.33,0.06]
[1754723464167,11.54213696,180.34,180.31,38.78]
[1754723464338,3.22284497,180.32,180.31,38.78]
[1754723464533,3.22284497,180.32,180.31,42.92632056]
[1754723464959,3.92284497,180.32,180.31,42.92632056]
[1754723465344,3.22284497,180.32,180.31,42.92632056]
[1754723466137,8.7685415,180.32,180.31,38.78]
[1754723466661,8.77025322,180.32,180.31,39.45]
[1754723467861,5.545389,180.33,180.31,0.73]
[1754723468052,5.0386603,180.32,180.31,0.73]
[1754723468260,5.0386603,180.32,180.31,4.20425807]
[1754723468442,5.0386603,180.32,180.31,14.20425807]
[1754723468874,5.0386603,180.32,180.31,14.87425807]
[1754723469057,10.58435683,180.32,180.31,14.87425807]
[1754723469249,10.58435683,180.32,180.31,4.87425807]
[1754723469763,10.58435683,180.32,180.31,14.87425807]
[1754723470652,10.58435683,180.32,180.31,4.87425807]
[1754723470969,10.58435683,180.32,180.31,4.87470277]
[1754723471346,10.58435683,180.32,180.31,14.87470277]
[1754723472243,10.58435683,180.32,180.31,4.87470277]
[1754723472461,10.58435683,180.32,180.31,14.87470277]
[1754723472655,10.58435683,180.32,180.31,4.87470277]
[1754723472857,10.58435683,180.32,180.31,14.87470277]
[1754723473057,10.58435683,180.32,180.31,4.87470277]
[1754723473659,10.58435683,180.32,180.31,0.06]
[1754723474359,10.58435683,180.32,180.31,4.2061576]
[1754723475082,10.58435683,180.32,180.31,0.06]
[1754723476266,10.58435683,180.32,180.31,0.73]
[1754723477045,10.58435683,180.32,180.31,0.06]
[1754723480575,5.545389,180.33,180.31,0.73]
[1754723480783,5.0386603,180.32,180.31,0.73]
[1754723481673,10.58435683,180.32,180.31,0.73]
[1754723482190,36.58435683,180.32,180.31,0.73]
[1754723482755,36.58435683,180.32,180.31,0.06]